Cogmind - Beta 10.2 @@@ ROGUE MODE // 2021.05.20 @ 04:02:48 Player: RavenousxxxDemon Result: Destroyed by G-34 Mercenary with Small Laser Performance ------------- Evolutions (0) 0 Regions Visited (1) 200 Robots Destroyed (9) 45 Value Destroyed (162) 162 Prototype IDs (0) 0 Alien Tech Used (0) 0 Bonus (0) 0 TOTAL SCORE: 407 Bonus ------- None Cogmind --------- Core Integrity 0/250 Matter 242/300 Energy 99/100 System Corruption 0% Temperature Cool (6) Movement Core (150) Ox2 Location -10/Materials Parts ------- > --- POWER (1) -------- (None) > --- PROPULSION (2) --- (None) > --- UTILITY (2) ------ Small Storage Unit Small Storage Unit > --- WEAPON (2) ------- (None) > --- INVENTORY (8) ---- Aluminum Leg Aluminum Leg Peak State ------------ > --- POWER ------------ Ion Engine > --- PROPULSION ------- Wheel Compact Wheel > --- UTILITY ---------- Small Storage Unit Small Storage Unit > --- WEAPON ----------- Assault Rifle > --- INVENTORY -------- Aluminum Leg Aluminum Leg Light Assault Rifle [Rating: 6] Favorites ----------- Power Ion Engine Engine Ion Engine Propulsion Compact Wheel Leg Aluminum Leg Wheel Compact Wheel Utility Small Storage Unit Storage Small Storage Unit Weapon Assault Rifle Ballistic Gun Assault Rifle Build | -11 -10 ------- Run | Scr Mat Slots Evolved . | . . Power . | . . Propulsion . | . . Utility . | . . Weapon . | . . Parts Attached 9 | 8 1 Power 1 | 1 . Engine 1 | 1 . Core . | . . Reactor . | . . Propulsion 4 | 4 . Treads . | . . Leg 1 | 1 . Wheel 3 | 3 . Hover . | . . Flight . | . . Utility 2 | 2 . Device . | . . Storage 2 | 2 . Processor . | . . Hackware . | . . Protection . | . . Artifact . | . . Weapon 2 | 1 1 Energy Gun . | . . Energy Cannon . | . . Ballistic Gun 2 | 1 1 Ballistic Cannon . | . . Launcher . | . . Special Weapon . | . . Impact Weapon . | . . Slashing Weapon . | . . Piercing Weapon . | . . Special Melee Weapon . | . . Unidentified Prototypes . | . . Parts Lost 5 | . 5 Power 1 | . 1 Propulsion 2 | . 2 Utility . | . . Weapon 2 | . 2 Highest Loss Streak 5 | . 5 Average Slot Usage (%) 69 | . 69 Engine 10 | . 10 Wheel 18 | . 18 Storage 28 | . 28 Ballistic Gun 13 | . 13 Naked Turns . | . . Heaviest Build 15 | 15 15 Greatest Support 26 | 16 26 Greatest Overweight (x) 2 | . 2 Average Overweight (x) . | . . Largest Inventory Capacity 8 | 8 8 Average Capacity 7 | 5 8 Most Carried 4 | 4 3 Average Carried 2 | 2 2 Final Capacity 8 | 8 8 Final Carried 3 | 3 2 Class Distribution -------------------- 100% | Mutant Dominant Class ---------------- Mutant | -10/Materials Resources | -11 -10 ----------- Run | Scr Mat Matter Collected 307 | 307 . Remotely . | . . Salvage Created 264 | 86 178 Parts 13 | 5 8 Haulers Intercepted . | . . Recyclers Shooed 2 | 2 . Parts Field Recycled . | . . Retrieved Matter . | . . Parts Self-Destructed . | . . Prevented . | . . Kills | -11 -10 ------- Run | Scr Mat Combat Hostiles Destroyed 6 | . 6 Guns 6 | . 6 Classes Destroyed 4 | 2 2 Tunneler 2 | 2 . Recycler 1 | 1 . Swarmer 3 | . 3 Grunt 3 | . 3 Best Kill Streak 6 | 2 6 Combat Bots Only 6 | . 6 Max Kills in Single Turn 1 | 1 1 Gunslinging . | . . Exploded . | . . Melee . | . . Uniques/NPCs Destroyed . | . . Combat | -11 -10 -------- Run | Scr Mat Damage Taken 698 | . 698 Core 260 | . 260 Absorbed by Shields . | . . Core Remaining (%) 100 | 100 . Volleys Fired 35 | 9 26 Largest 2 | 1 2 Hottest 40 | 20 40 Shots Fired 38 | 9 29 Gun 38 | 9 29 Cannon . | . . Launcher . | . . Special . | . . Kinetic 38 | 9 29 Thermal . | . . Explosive . | . . Electromagnetic . | . . Robot Hit Streak 4 | 1 4 Robot Miss Streak 4 | 4 4 Penetration Max . | . . Secondary Targets . | . . Shots Hit Robots 18 | 2 16 Core Hits 14 | 4 10 Critical Hits . | . . Critical Kills . | . . Critical Parts Destroyed . | . . Melee Attacks . | . . Impact . | . . Slashing . | . . Piercing . | . . Sneak Attacks . | . . Combat Hostiles . | . . Follow-up Attacks . | . . Damage Inflicted 295 | 73 222 Guns 295 | 73 222 Cannons . | . . Explosions . | . . Melee . | . . Ramming . | . . Kinetic 295 | 73 222 Thermal . | . . Explosive . | . . Electromagnetic . | . . Impact . | . . Slashing . | . . Piercing . | . . Highest Corruption . | . . Average Corruption . | . . Corruption Purged . | . . Overload Shots . | . . Overflow Damage . | . . Projectiles . | . . Explosions . | . . Melee . | . . Knockbacks . | . . Impact . | . . Kinetic . | . . Secondary . | . . Self-Inflicted Damage . | . . Shots . | . . Rammed . | . . Targets Rammed . | . . Kicked . | . . Crushed . | . . Highest Temperature 9 | . 9 Average Temperature 3 | . 3 Received Heat Transfer 321 | . 321 Siege Activations . | . . Robots Corrupted . | . . Combat Hostiles . | . . Parts Fried . | . . Impact Corruptions . | . . Robots Melted . | . . Combat Hostiles . | . . Parts Melted . | . . Heat Transferred . | . . Parts Sabotaged . | . . Parts Stolen . | . . Parts Stripped . | . . Power Chain Reactions . | . . Missiles Intercepted . | . . Alert | -11 -10 ------- Run | Scr Mat Peak Influence 194 | 15 194 Initial 9 | . 9 Average 51 | 4 81 Maximum Alert Level . | . . Low Security (%) 100 | 100 100 Level 1 . | . . Level 2 . | . . Level 3 . | . . Level 4 . | . . Level 5 . | . . High Security . | . . Max Security . | . . Squads Dispatched 2 | . 2 Investigation 1 | . 1 Extermination . | . . Reinforcement 1 | . 1 Assault . | . . Garrison . | . . Intercept . | . . Construction Impeded . | . . Haulers Reinforced . | . . Stealth | -11 -10 --------- Run | Scr Mat Distress Signals 1 | . 1 Communications Jammed . | . . Distress Signals . | . . Times Spotted 13 | . 13 Peak Tracking Total 8 | . 8 Tactical Retreats 1 | . 1 Traps | -11 -10 ------- Run | Scr Mat Traps Triggered 1 | . 1 Indirectly . | . . Trap Hack Attempts . | . . Triggered . | . . Disarmed . | . . Reprogrammed . | . . Reused . | . . Traps Extracted . | . . Installed . | . . Triggered . | . . Machines | -11 -10 ---------- Run | Scr Mat Machines Disabled 1 | . 1 Max in Single Turn 1 | . 1 Machines Sabotaged . | . . Garrisons Compromised . | . . Overloaded Fab Kills . | . . Fab Network Shutdowns . | . . Hacking | -11 -10 --------- Run | Scr Mat Machines Accessed 1 | . 1 Terminals 1 | . 1 Fabricators . | . . Repair Stations . | . . Recycling Units . | . . Scanalyzers . | . . Garrison Access . | . . Total Hacks 1 | . 1 Successful . | . . Failed 1 | . 1 Catastrophic . | . . Database Lockouts . | . . Manual . | . . Terminals 1 | . 1 Fabricators . | . . Repair Stations . | . . Recycling Units . | . . Scanalyzers . | . . Garrison Access . | . . Terminal Hacks . | . . Fabricator Hacks . | . . Repair Station Hacks . | . . Recycling Unit Hacks . | . . Scanalyzer . | . . Garrison Access Hacks . | . . Unauthorized Hacks . | . . Terminals . | . . Fabricators . | . . Repair Stations . | . . Recycling Units . | . . Scanalyzers . | . . Garrison Access . | . . Data Cores Recovered . | . . Used . | . . Hacking Detections . | . . Full Trace Events . | . . Feedback Events . | . . Feedback Blocked . | . . Robot Schematics Acquired . | . . Robots Built . | . . Matter . | . . Time . | . . Total Robot Build Rating . | . . Part Schematics Acquired . | . . Parts Built . | . . Matter . | . . Time . | . . Total Part Build Rating . | . . Parts Repaired . | . . Time . | . . Parts Recycled . | . . Recycled Matter . | . . Retrieved Matter . | . . Retrieved Components . | . . Parts Scanalyzed . | . . Part Schematics Acquired . | . . Parts Damaged . | . . Bothacking | -11 -10 ------------ Run | Scr Mat Used RIF Installer . | . . Robots Hacked . | . . Non-combat . | . . Combat . | . . Robot Hacks Applied . | . . Relay Couplers Released . | . . Robots Rewired . | . . Allies Hacked . | . . Hacks Repelled . | . . Allies | -11 -10 -------- Run | Scr Mat Total Allies . | . . Largest Group . | . . Highest-Rated Group . | . . Highest-Rated Ally . | . . Total Orders . | . . Ally Attacks . | . . Total Damage . | . . Kills . | . . Allies Corrupted . | . . Allies Melted . | . . Intel | -11 -10 ------- Run | Scr Mat Robot Analysis Total . | . . Derelict Logs Recovered . | . . Drone Launches . | . . Drone Recoveries . | . . Exploration | -11 -10 ------------- Run | Scr Mat Turns Passed 221 | 87 134 Spaces Moved 137 | 58 79 Core 30 | 15 15 Treads . | . . Legs . | . . Wheels 107 | 43 64 Hover . | . . Flight . | . . Fastest Speed 50 | 50 90 Average Speed 95 | 87 101 Slowest Speed 150 | 100 150 Overloaded Moves . | . . Propulsion Burnouts . | . . Robots Hopped . | . . Cave-ins Triggered . | . . Exploration Rate (%) 13 | 4 23 Regions Visited 1 Branch Regions . Pre-discovered Areas . | . . Known Exits Taken . | . . Unknown Exits Taken 1 | 1 . Scrap Searched . | . . Spaces Dug . | . . Terrain Destroyed . | . . Melee . | . . Projectile . | . . AOE . | . . Terrain Rammed . | . . Walls Destroyed . | . . Machines Disabled . | . . Actions | -11 -10 --------- Run | Scr Mat Total 192 | 86 106 Wait . | . . Move 136 | 57 79 Hop . | . . Pick Up 10 | 10 . Fast Attach . | . . Attach 8 | 7 1 Detach 1 | 1 . Swap 1 | 1 . Drop 1 | 1 . Fire 35 | 9 26 Melee . | . . Ram . | . . Kick . | . . Crush . | . . Escape Stasis . | . . Rewire . | . . Trap . | . . Miscellaneous . | . . Route ------- -11/Scrapyard -10/Materials History --------- Turn | Location | Event 13 | -11/Scrapyard | Discovered new exit (range 15) 88 | -11/Scrapyard | Entered Materials 199 | -10/Materials | Core integrity fell below 50% 212 | -10/Materials | Core integrity fell below 20% 222 | -10/Materials | Destroyed by G-34 Mercenary with Small Laser Last Messages --------------- 00181_ R-06 Scavenger collects Lgt. Ion Engine. 00181_ Ion Engine destroyed. 00181_ R-06 Scavenger collects Aluminum Leg. 00184_ R-06 Scavenger inserts Lgt. Ion Engine into recycling unit. 00185_ R-06 Scavenger collects Heat Sink. 00189_ Com. Wheel destroyed. 00193_ Assault Rifle destroyed. 00193_ G-34 Mercenary destroyed. 00195_ R-06 Scavenger collects Heat Sink. 00198_ Electrolysis Chamber disabled. 00200_ G-34 Mercenary destroyed. 00201_ Lgt. Assault Rifle destroyed. 00202_ R-06 Scavenger collects Heat Sink. 00202_ R-06 Scavenger inserts Aluminum Leg into recycling unit. 00205_ R-06 Scavenger inserts Heat Sink into recycling unit. 00206_ R-06 Scavenger collects Aluminum Leg. 00208_ R-06 Scavenger inserts Heat Sink into recycling unit. 00212_ R-06 Scavenger collects Aluminum Leg. 00213_ R-06 Scavenger inserts Aluminum Leg into recycling unit. 00216_ Recycling unit begins recycling process. Map ----- +----------------------------------------------------+ | ?????????????????????????##???+# # """ #? | | ?????????????????????????# # + """ #? | | ?????????????????????????# """ # # """ #? | | ?????????????????????????# """ # # #? | | ?????????????????????????# """ # #? """ #? | | ?????????????????????????# """ # #? """ #? | | ???????????????########??# # #?? """??? | | ??????????????? ??? # #?? ??? | | ???????????????? ####+### #???####??? | | ??????????????????""""" # #?????????? | | ??????????????????""""" + #?????????? | | ??????????????????""""" # #?????????? | | ?????????????????"""""" # ###### #?????????? | | ??????????????# """"""" # # # #?????????? | | ??????????????# + + T # #?????????? | | ????????????????######### # # #?????????? | | ????????????????????????# # # #?????????? | | ????????????????????????# #?! # #?????????? | | ????????????????????????# #? # #?????????? | | ???????# ???????????????# #?? # #?????????? | | ???????# ??????????????# #?? # #?????????? | | ???????# ?????????????# #??? # #?????????? | | ??????## ?????????????# #???## +?????????? | | ??????# ????????????# #????? #?????????? | | ??????# ???????????# #??????????????????? | | ??????# ???????????#@#??????????????????? | | ??????# ??#########/#??????????????????? | | ??????# #?# #??????????????????? | | ??????# ?# T #??????????????????? | | ??????# # #??????????????????? | | ??????# # """%""" #??????????????????? | | ??????# / """ """ #??????????????????? | | ??????# # "" ""g#??????????????????? | | ??????# # %%% #??????????????????? | | ??????# ?# %% #??????????????????? | | ??????# ?##"Y"######??????????????????? | | ????? ???#"""#???????????????????????? | | ??? ???#####???????????????????????? | | ??? ????????????????????????????????? | | ????#########????????????????????????????????? | | ?????????????????????????????????????????????? | | ?????????????????????????????????????????????? | | ?????????????????????????????????????????????? | | ?????????????????????????????????????????????? | | ?????????????????????????????????????????????? | | ?????????????????????????????????????????????? | | ?????????????????????????????????????????????? | | ?????????????????????????????????????????????? | | ?????????????????????????????????????????????? | | ?????????????????????????????????????????????? | +----------------------------------------------------+ Best States ------------- Heat Dissipation 25 Energy Generation 10 Energy Capacity 250 Matter Stores 300 Matter Capacity 300 Sight Range 16 Terrain Scan Density 10 Evasion (%) 42 Item Schematics ----------------- None Robot Schematics ------------------ None Fabricated ------------ Nothing Alien Tech Used ----------------- None Achievements -------------- None Challenges ------------ None Game ------ Seed HardenedPointExtractor Manual? 0 Play Time 00:04:20 Cumulative 4.2 hours Start 2021.05.20 @ 03:59:58 End 2021.05.20 @ 04:02:48 Sessions 1 Manual Loads 0 Difficulty Rogue Special Mode None Game No. 9 Rogue 9 Adventurer 0 Explorer 0 Win Type - Total 0 Types 0/0/0/0/0/0/0/0/0 Lore% 2 Gallery% 9 Achievement% 10 Wizard Run 0 Options --------- ASCII 0 Keyboard 0 Movement Mouse Keybinds 0 Fullscreen 1 Font 18/SmallcapsGlow Map View 76x50 Tactical HUD 1 Map Filters NONE Filters NONE Steam 1 RUN: 293a30af-8f5b-4595-a4a5-8af865c864a3